[Event "*** Titled Tuesday Blitz"]
[Site "Chess.com"]
[Date "2020.11.03"]
[Round "4"]
[White "jaskol95"]
[Black "Orest_Vovk"]
[Result "1-0"]
[WhiteElo "2323"]
[BlackElo "2448"]
[TimeControl "180+1"]
[EndTime "10:41:42 PST"]
[Termination "jaskol95 won by checkmate"]

1. d4 {[%clk 0:03:00.1]} 1... e5 {[%clk 0:02:53.8]} 2. dxe5 {[%clk 0:02:59.1]}
2... Nc6 {[%clk 0:02:53.5]} 3. Nf3 {[%clk 0:02:57.7]} 3... Qe7 {[%clk
0:02:53.7]} 4. Nc3 {[%clk 0:02:56]} 4... Nxe5 {[%clk 0:02:53.2]} 5. e4 {[%clk
0:02:53.8]} 5... Nf6 {[%clk 0:02:47.6]} 6. Be2 {[%clk 0:02:44.5]} 6... d6 {[%clk
0:02:40.9]} 7. Bg5 {[%clk 0:02:40.5]} 7... c6 {[%clk 0:02:40.2]} 8. O-O {[%clk
0:02:38.9]} 8... g6 {[%clk 0:02:34.7]} 9. Nd4 {[%clk 0:02:14.7]} 9... Bg7 {[%clk
0:02:27.8]} 10. f4 {[%clk 0:02:14.4]} 10... Ned7 {[%clk 0:02:20.7]} 11. Bf3
{[%clk 0:02:06.3]} 11... O-O {[%clk 0:02:13]} 12. Qd2 {[%clk 0:01:52.6]} 12...
Nc5 {[%clk 0:01:42.6]} 13. Rae1 {[%clk 0:01:47.9]} 13... Qc7 {[%clk 0:01:38]}
14. h3 {[%clk 0:01:36.9]} 14... Ne6 {[%clk 0:01:14.2]} 15. Nxe6 {[%clk
0:01:26.6]} 15... fxe6 {[%clk 0:01:07.6]} 16. e5 {[%clk 0:01:20.8]} 16... Nd5
{[%clk 0:01:00.7]} 17. exd6 {[%clk 0:01:16.8]} 17... Qxd6 {[%clk 0:00:58.8]} 18.
Ne4 {[%clk 0:01:14.6]} 18... Qb4 {[%clk 0:00:53.7]} 19. c3 {[%clk 0:01:06.7]}
19... Qb6+ {[%clk 0:00:50.3]} 20. Kh1 {[%clk 0:01:01.9]} 20... e5 {[%clk
0:00:40.6]} 21. fxe5 {[%clk 0:00:57.5]} 21... Bxe5 {[%clk 0:00:33.4]} 22. Bh6
{[%clk 0:00:57.7]} 22... Re8 {[%clk 0:00:24.3]} 23. Nd6 {[%clk 0:00:44.7]} 23...
Bf5 {[%clk 0:00:16.2]} 24. Bxd5+ {[%clk 0:00:39.2]} 24... cxd5 {[%clk
0:00:15.4]} 25. Qxd5+ {[%clk 0:00:20.6]} 25... Re6 {[%clk 0:00:15]} 26. Nxf5
{[%clk 0:00:20.4]} 26... gxf5 {[%clk 0:00:13.4]} 27. Rxe5 {[%clk 0:00:19.8]}
27... Re8 {[%clk 0:00:13.6]} 28. Rexf5 {[%clk 0:00:16.2]} 28... Qd8 {[%clk
0:00:06]} 29. Qxd8 {[%clk 0:00:08.4]} 29... Rxd8 {[%clk 0:00:06.9]} 30. Rf8+
{[%clk 0:00:08.5]} 30... Rxf8 {[%clk 0:00:07]} 31. Rxf8# {[%clk 0:00:09.3]} 1-0

[Event "*** Titled Tuesday Blitz"]
[Site "Chess.com"]
[Date "2020.11.03"]
[Round "4"]
[White "anon481216"]
[Black "HanSchut"]
[Result "1-0"]
[WhiteElo "2384"]
[BlackElo "2200"]
[TimeControl "180+1"]
[EndTime "10:41:42 PST"]
[Termination "anon481216 won on time"]

1. d4 {[%clk 0:03:00.9]} 1... Nf6 {[%clk 0:02:52.9]} 2. c4 {[%clk 0:03:00.5]}
2... g6 {[%clk 0:02:53.1]} 3. Nc3 {[%clk 0:03:00.3]} 3... d5 {[%clk 0:02:53.3]}
4. Bg5 {[%clk 0:03:00]} 4... Ne4 {[%clk 0:02:53.2]} 5. Bh4 {[%clk 0:02:52.3]}
5... Nxc3 {[%clk 0:02:52.7]} 6. bxc3 {[%clk 0:02:52.2]} 6... dxc4 {[%clk
0:02:50.3]} 7. e3 {[%clk 0:02:50.5]} 7... Be6 {[%clk 0:02:50.2]} 8. Nf3 {[%clk
0:02:49.1]} 8... Nd7 {[%clk 0:02:48.9]} 9. Ng5 {[%clk 0:02:46.9]} 9... Bd5
{[%clk 0:02:48.3]} 10. e4 {[%clk 0:02:44.7]} 10... h6 {[%clk 0:02:48.7]} 11.
exd5 {[%clk 0:02:44.6]} 11... hxg5 {[%clk 0:02:49]} 12. Bxg5 {[%clk 0:02:44.9]}
12... Nb6 {[%clk 0:02:48.5]} 13. Bxc4 {[%clk 0:02:43.7]} 13... Nxd5 {[%clk
0:02:31.6]} 14. Qb3 {[%clk 0:02:40.8]} 14... c6 {[%clk 0:02:16]} 15. Qxb7 {[%clk
0:02:36.9]} 15... Rc8 {[%clk 0:02:09.6]} 16. Qb3 {[%clk 0:02:09.2]} 16... Qd6
{[%clk 0:01:57.6]} 17. h4 {[%clk 0:01:49.2]} 17... Bg7 {[%clk 0:01:28.4]} 18.
Kf1 {[%clk 0:01:44.8]} 18... O-O {[%clk 0:01:15.4]} 19. Re1 {[%clk 0:01:40.8]}
19... e6 {[%clk 0:01:05.3]} 20. h5 {[%clk 0:01:39.7]} 20... f6 {[%clk
0:00:45.8]} 21. Bd2 {[%clk 0:01:29.5]} 21... g5 {[%clk 0:00:41.8]} 22. h6 {[%clk
0:01:27.5]} 22... Bh8 {[%clk 0:00:41.7]} 23. h7+ {[%clk 0:01:25.6]} 23... Kf7
{[%clk 0:00:41.9]} 24. Qc2 {[%clk 0:01:20.3]} 24... Bg7 {[%clk 0:00:22.1]} 25.
Bd3 {[%clk 0:01:17.3]} 25... c5 {[%clk 0:00:20.9]} 26. Bg6+ {[%clk 0:01:15.9]}
26... Ke7 {[%clk 0:00:20.8]} 27. Bf5 {[%clk 0:01:13.6]} 27... cxd4 {[%clk
0:00:16.3]} 28. Rxe6+ {[%clk 0:01:11.2]} 28... Qxe6 {[%clk 0:00:16.4]} 29. Bxe6
{[%clk 0:01:11.6]} 29... Kxe6 {[%clk 0:00:16.4]} 30. Qe4+ {[%clk 0:01:09.3]}
30... Kd6 {[%clk 0:00:16.9]} 31. cxd4 {[%clk 0:01:08.3]} 31... Rfe8 {[%clk
0:00:15.5]} 32. Qd3 {[%clk 0:01:05.6]} 32... Rc7 {[%clk 0:00:13.3]} 33. g3
{[%clk 0:01:05.1]} 33... Rec8 {[%clk 0:00:12.2]} 34. Kg2 {[%clk 0:01:04.9]}
34... Rc4 {[%clk 0:00:12.2]} 35. Qa3+ {[%clk 0:01:02.4]} 35... Ke6 {[%clk
0:00:11.5]} 36. Re1+ {[%clk 0:01:01.3]} 36... Kf7 {[%clk 0:00:10.4]} 37. Qxa7+
{[%clk 0:01:00]} 37... R8c7 {[%clk 0:00:09.5]} 38. Qa6 {[%clk 0:00:59.4]} 38...
Kg6 {[%clk 0:00:09.2]} 39. Qa8 {[%clk 0:00:56.1]} 39... Ne7 {[%clk 0:00:09.1]}
40. h8=Q {[%clk 0:00:55.6]} 40... Bxh8 {[%clk 0:00:09.6]} 41. Qxh8 {[%clk
0:00:55.5]} 41... Nf5 {[%clk 0:00:10.2]} 42. Rh1 {[%clk 0:00:49.3]} 42... Nxd4
{[%clk 0:00:07.2]} 43. Qh5+ {[%clk 0:00:46.3]} 43... Kf5 {[%clk 0:00:04]} 44.
Re1 {[%clk 0:00:43]} 1-0

[Event "*** Titled Tuesday Blitz"]
[Site "Chess.com"]
[Date "2020.11.03"]
[Round "4"]
[White "Nuvas"]
[Black "GMG"]
[Result "1-0"]
[WhiteElo "2291"]
[BlackElo "2704"]
[TimeControl "180+1"]
[EndTime "10:41:43 PST"]
[Termination "Nuvas won by resignation"]

1. d4 {[%clk 0:03:00.3]} 1... d5 {[%clk 0:02:59.3]} 2. c4 {[%clk 0:03:00.4]}
2... e6 {[%clk 0:02:59.5]} 3. Nc3 {[%clk 0:03:00.3]} 3... c6 {[%clk 0:02:59.9]}
4. e4 {[%clk 0:03:00.2]} 4... dxe4 {[%clk 0:03:00.8]} 5. Nxe4 {[%clk 0:03:00.4]}
5... Bb4+ {[%clk 0:03:01.4]} 6. Nc3 {[%clk 0:03:00.6]} 6... c5 {[%clk
0:03:01.9]} 7. a3 {[%clk 0:03:00.7]} 7... Ba5 {[%clk 0:03:02]} 8. Be3 {[%clk
0:03:00.1]} 8... Nf6 {[%clk 0:03:00.6]} 9. Nf3 {[%clk 0:02:44.8]} 9... O-O
{[%clk 0:02:50.5]} 10. Be2 {[%clk 0:02:23.5]} 10... Ne4 {[%clk 0:02:46.9]} 11.
Qc2 {[%clk 0:02:23]} 11... Nxc3 {[%clk 0:02:39.4]} 12. bxc3 {[%clk 0:02:23]}
12... cxd4 {[%clk 0:02:38]} 13. Nxd4 {[%clk 0:02:22.2]} 13... e5 {[%clk
0:01:56.1]} 14. Nb3 {[%clk 0:02:22]} 14... Bc7 {[%clk 0:01:48.8]} 15. Rd1 {[%clk
0:02:20.8]} 15... Qf6 {[%clk 0:01:48.6]} 16. Bf3 {[%clk 0:02:09.4]} 16... Nc6
{[%clk 0:01:40.9]} 17. Be4 {[%clk 0:01:37.3]} 17... h6 {[%clk 0:01:33.9]} 18.
O-O {[%clk 0:01:36.8]} 18... Bg4 {[%clk 0:01:01.5]} 19. f3 {[%clk 0:01:20.1]}
19... Be6 {[%clk 0:00:39.7]} 20. Nc5 {[%clk 0:01:19.9]} 20... Bb6 {[%clk
0:00:34.4]} 21. Qf2 {[%clk 0:01:09.4]} 21... Bxc5 {[%clk 0:00:24.5]} 22. Bxc5
{[%clk 0:01:10.3]} 22... Rfd8 {[%clk 0:00:21.1]} 23. Bd5 {[%clk 0:00:53.7]}
23... Na5 {[%clk 0:00:20.9]} 24. Bxa7 {[%clk 0:00:34.6]} 24... Nxc4 {[%clk
0:00:20.3]} 25. Bxe6 {[%clk 0:00:33.8]} 25... Qxe6 {[%clk 0:00:19.6]} 26. Bc5
{[%clk 0:00:31]} 26... Rd5 {[%clk 0:00:15.2]} 27. Bb4 {[%clk 0:00:15.3]} 27...
Rad8 {[%clk 0:00:14.9]} 28. Qe2 {[%clk 0:00:15.7]} 28... Qb6+ {[%clk 0:00:07]}
29. Kh1 {[%clk 0:00:16]} 29... Qc6 {[%clk 0:00:04.3]} 30. a4 {[%clk 0:00:12]}
30... Rxd1 {[%clk 0:00:02.8]} 31. Rxd1 {[%clk 0:00:12.9]} 31... Rxd1+ {[%clk
0:00:03]} 32. Qxd1 {[%clk 0:00:13.8]} 32... Qxa4 {[%clk 0:00:03.6]} 33. Qxa4
{[%clk 0:00:13.8]} 33... Ne3 {[%clk 0:00:03.4]} 34. Qa8+ {[%clk 0:00:13.7]} 1-0

[Event "*** Titled Tuesday Blitz"]
[Site "Chess.com"]
[Date "2020.11.03"]
[Round "4"]
[White "Brave_spirit12"]
[Black "lacafi"]
[Result "1-0"]
[WhiteElo "2497"]
[BlackElo "2095"]
[TimeControl "180+1"]
[EndTime "10:41:45 PST"]
[Termination "Brave_spirit12 won on time"]

1. e4 {[%clk 0:02:59.3]} 1... c6 {[%clk 0:02:59.6]} 2. Nc3 {[%clk 0:02:59.2]}
2... d5 {[%clk 0:02:59.6]} 3. Nf3 {[%clk 0:03:00.1]} 3... dxe4 {[%clk
0:02:59.5]} 4. Nxe4 {[%clk 0:03:01]} 4... Nf6 {[%clk 0:03:00]} 5. Qe2 {[%clk
0:03:01.3]} 5... e6 {[%clk 0:02:59.5]} 6. d4 {[%clk 0:03:00]} 6... Nxe4 {[%clk
0:02:57.1]} 7. Qxe4 {[%clk 0:03:00.9]} 7... Nd7 {[%clk 0:02:57.5]} 8. Bg5 {[%clk
0:03:00.8]} 8... Qa5+ {[%clk 0:02:54.2]} 9. Bd2 {[%clk 0:02:59.2]} 9... Qb6
{[%clk 0:02:54.1]} 10. O-O-O {[%clk 0:02:58.3]} 10... Nf6 {[%clk 0:02:53]} 11.
Qe3 {[%clk 0:02:55.5]} 11... Be7 {[%clk 0:02:50.8]} 12. Bd3 {[%clk 0:02:54.1]}
12... O-O {[%clk 0:02:50.4]} 13. g4 {[%clk 0:02:51.9]} 13... c5 {[%clk
0:02:49.8]} 14. g5 {[%clk 0:02:50.1]} 14... Nd5 {[%clk 0:02:05]} 15. Qe4 {[%clk
0:02:46.9]} 15... g6 {[%clk 0:01:53.6]} 16. h4 {[%clk 0:02:44.1]} 16... cxd4
{[%clk 0:01:32.8]} 17. h5 {[%clk 0:02:40.1]} 17... Nc3 {[%clk 0:01:04.8]} 18.
Bxc3 {[%clk 0:01:19]} 18... dxc3 {[%clk 0:01:03.4]} 19. Rdg1 {[%clk 0:01:01.3]}
19... Qxb2+ {[%clk 0:00:56.5]} 20. Kd1 {[%clk 0:00:59.9]} 20... Qb4 {[%clk
0:00:45.6]} 21. hxg6 {[%clk 0:00:47.6]} 21... fxg6 {[%clk 0:00:42.2]} 22. Nd4
{[%clk 0:00:15.2]} 22... Rxf2 {[%clk 0:00:27.7]} 23. Ke1 {[%clk 0:00:15.2]}
23... Rd2 {[%clk 0:00:15.2]} 24. Nb3 {[%clk 0:00:14]} 24... Qxe4+ {[%clk
0:00:10.9]} 25. Bxe4 {[%clk 0:00:14.9]} 25... Rd8 {[%clk 0:00:07.6]} 26. Rh3
{[%clk 0:00:15]} 26... Bd7 {[%clk 0:00:04.1]} 27. Rgh1 {[%clk 0:00:15]} 27...
Bf8 {[%clk 0:00:01.8]} 28. Rxh7 {[%clk 0:00:14.3]} 28... Bg7 {[%clk 0:00:02.4]}
29. Bxg6 {[%clk 0:00:14.7]} 29... Bc6 {[%clk 0:00:02.1]} 30. R1h3 {[%clk
0:00:13.9]} 30... Rd5 {[%clk 0:00:02.2]} 31. R7h5 {[%clk 0:00:09.4]} 1-0

[Event "*** Titled Tuesday Blitz"]
[Site "Chess.com"]
[Date "2020.11.03"]
[Round "4"]
[White "Dinamo3"]
[Black "Shota_Azaladze"]
[Result "1/2-1/2"]
[WhiteElo "2426"]
[BlackElo "2622"]
[TimeControl "180+1"]
[EndTime "10:41:48 PST"]
[Termination "Game drawn by repetition"]

1. e4 {[%clk 0:03:00.9]} 1... g6 {[%clk 0:03:00.5]} 2. d4 {[%clk 0:03:00.6]}
2... Bg7 {[%clk 0:03:01.4]} 3. Nc3 {[%clk 0:03:01.2]} 3... c6 {[%clk 0:03:01.9]}
4. Nf3 {[%clk 0:03:00.2]} 4... d6 {[%clk 0:03:02.4]} 5. Be2 {[%clk 0:03:00.1]}
5... Nf6 {[%clk 0:03:02.6]} 6. O-O {[%clk 0:02:59.8]} 6... O-O {[%clk
0:03:03.2]} 7. h3 {[%clk 0:03:00.1]} 7... Qa5 {[%clk 0:03:02.3]} 8. Re1 {[%clk
0:02:58.2]} 8... e5 {[%clk 0:03:02.1]} 9. Bf1 {[%clk 0:02:56.9]} 9... Nbd7
{[%clk 0:03:01.6]} 10. Bg5 {[%clk 0:02:54.5]} 10... Re8 {[%clk 0:03:01]} 11. Qd2
{[%clk 0:02:51.2]} 11... Nf8 {[%clk 0:02:59.4]} 12. dxe5 {[%clk 0:02:41.8]}
12... dxe5 {[%clk 0:02:58.7]} 13. Qd6 {[%clk 0:02:27.8]} 13... N6d7 {[%clk
0:02:34.2]} 14. Nd2 {[%clk 0:02:11.1]} 14... Ne6 {[%clk 0:02:31.9]} 15. Nc4
{[%clk 0:02:01.9]} 15... Qc5 {[%clk 0:02:30.4]} 16. Qd2 {[%clk 0:01:52.5]} 16...
Nxg5 {[%clk 0:02:28.3]} 17. Qxg5 {[%clk 0:01:47]} 17... b5 {[%clk 0:02:28.2]}
18. Ne3 {[%clk 0:01:38.1]} 18... Nf8 {[%clk 0:02:21.5]} 19. Rad1 {[%clk
0:01:35.2]} 19... Ne6 {[%clk 0:02:20.1]} 20. Qg3 {[%clk 0:01:34.4]} 20... Nd4
{[%clk 0:02:19.3]} 21. Rd2 {[%clk 0:01:28.7]} 21... Be6 {[%clk 0:02:18.4]} 22.
a3 {[%clk 0:01:05.4]} 22... a5 {[%clk 0:02:17.6]} 23. Ne2 {[%clk 0:01:05.5]}
23... b4 {[%clk 0:01:57.1]} 24. a4 {[%clk 0:00:55.7]} 24... Rad8 {[%clk
0:01:49.6]} 25. Red1 {[%clk 0:00:52.4]} 25... Nxe2+ {[%clk 0:01:44.1]} 26. Bxe2
{[%clk 0:00:51.5]} 26... Rd4 {[%clk 0:01:41.5]} 27. b3 {[%clk 0:00:44]} 27...
Qc3 {[%clk 0:01:37.3]} 28. Rd3 {[%clk 0:00:21.9]} 28... Qb2 {[%clk 0:01:36.9]}
29. R1d2 {[%clk 0:00:19.2]} 29... Red8 {[%clk 0:01:35.6]} 30. Kh2 {[%clk
0:00:15.7]} 30... h5 {[%clk 0:01:31.7]} 31. Rxd4 {[%clk 0:00:16.1]} 31... Rxd4
{[%clk 0:01:30]} 32. Rxd4 {[%clk 0:00:11.2]} 32... exd4 {[%clk 0:01:30.9]} 33.
Nc4 {[%clk 0:00:11.7]} 33... Qxc2 {[%clk 0:01:30.6]} 34. Qd3 {[%clk 0:00:12.3]}
34... Qc1 {[%clk 0:01:29.7]} 35. g3 {[%clk 0:00:12.3]} 35... h4 {[%clk
0:01:29.7]} 36. Kg2 {[%clk 0:00:12.5]} 36... hxg3 {[%clk 0:01:28.8]} 37. fxg3
{[%clk 0:00:13.4]} 37... c5 {[%clk 0:01:25]} 38. Qf3 {[%clk 0:00:13.3]} 38...
Bh6 {[%clk 0:01:23.7]} 39. h4 {[%clk 0:00:12.3]} 39... Be3 {[%clk 0:01:23.1]}
40. Qf1 {[%clk 0:00:12.5]} 40... Qc3 {[%clk 0:01:23.1]} 41. Qd1 {[%clk
0:00:12.7]} 41... Bh6 {[%clk 0:01:10.5]} 42. Qd3 {[%clk 0:00:12.7]} 42... Qc1
{[%clk 0:01:07.6]} 43. Qd1 {[%clk 0:00:11.8]} 43... Qxd1 {[%clk 0:01:07.3]} 44.
Bxd1 {[%clk 0:00:12]} 44... Bxc4 {[%clk 0:01:05]} 45. bxc4 {[%clk 0:00:12.9]}
45... d3 {[%clk 0:01:05.5]} 46. Kf3 {[%clk 0:00:12.4]} 46... Kg7 {[%clk
0:01:05]} 47. e5 {[%clk 0:00:12.8]} 47... Kf8 {[%clk 0:01:03.8]} 48. Ke4 {[%clk
0:00:13.2]} 48... d2 {[%clk 0:01:03.1]} 49. g4 {[%clk 0:00:13]} 49... Ke7 {[%clk
0:01:02.4]} 50. g5 {[%clk 0:00:13.4]} 50... Bg7 {[%clk 0:01:02.8]} 51. Kd5
{[%clk 0:00:14]} 51... Kd7 {[%clk 0:01:03]} 52. Bc2 {[%clk 0:00:14.1]} 52... Kc7
{[%clk 0:01:02.3]} 53. Bd1 {[%clk 0:00:14.6]} 53... Kb6 {[%clk 0:00:59.3]} 54.
Bc2 {[%clk 0:00:15]} 54... Kc7 {[%clk 0:00:58.3]} 55. Bd1 {[%clk 0:00:15.5]}
55... Kd7 {[%clk 0:00:58.4]} 56. Bc2 {[%clk 0:00:16]} 56... Ke7 {[%clk
0:00:58.3]} 57. Bd1 {[%clk 0:00:16.4]} 57... Kd7 {[%clk 0:00:58.1]} 1/2-1/2

[Event "*** Titled Tuesday Blitz"]
[Site "Chess.com"]
[Date "2020.11.03"]
[Round "4"]
[White "petrkostenko"]
[Black "frederiksvane"]
[Result "0-1"]
[WhiteElo "2471"]
[BlackElo "2629"]
[TimeControl "180+1"]
[EndTime "10:41:51 PST"]
[Termination "frederiksvane won on time"]

1. e4 {[%clk 0:02:55.1]} 1... c5 {[%clk 0:02:58.9]} 2. Nf3 {[%clk 0:02:54.4]}
2... g6 {[%clk 0:02:58.7]} 3. d4 {[%clk 0:02:52.8]} 3... cxd4 {[%clk 0:02:59.6]}
4. Qxd4 {[%clk 0:02:53]} 4... Nf6 {[%clk 0:02:59.4]} 5. Nc3 {[%clk 0:02:53.6]}
5... Nc6 {[%clk 0:02:59.4]} 6. Qa4 {[%clk 0:02:54.2]} 6... d6 {[%clk 0:03:00.1]}
7. e5 {[%clk 0:02:54.7]} 7... dxe5 {[%clk 0:03:01]} 8. Nxe5 {[%clk 0:02:55.1]}
8... Bg7 {[%clk 0:03:01.7]} 9. Bb5 {[%clk 0:02:54.4]} 9... O-O {[%clk
0:03:01.3]} 10. Nxc6 {[%clk 0:02:54.5]} 10... bxc6 {[%clk 0:03:02]} 11. Bxc6
{[%clk 0:02:55]} 11... Bd7 {[%clk 0:03:02.7]} 12. O-O {[%clk 0:02:49]} 12... Rc8
{[%clk 0:02:28]} 13. Bxd7 {[%clk 0:02:48.4]} 13... Qxd7 {[%clk 0:02:27.7]} 14.
Be3 {[%clk 0:01:04.4]} 14... Qxa4 {[%clk 0:02:20.4]} 15. Nxa4 {[%clk 0:01:03.7]}
15... Rxc2 {[%clk 0:02:13.3]} 16. Rac1 {[%clk 0:01:02.6]} 16... Rfc8 {[%clk
0:01:52.8]} 17. Rxc2 {[%clk 0:01:00.6]} 17... Rxc2 {[%clk 0:01:53.7]} 18. Bxa7
{[%clk 0:01:00.6]} 18... Nd5 {[%clk 0:01:53.9]} 19. Rb1 {[%clk 0:00:47.1]} 19...
Bxb2 {[%clk 0:00:54.8]} 20. Nxb2 {[%clk 0:00:38]} 20... Nc3 {[%clk 0:00:54.5]}
21. Re1 {[%clk 0:00:26.4]} 21... Rxb2 {[%clk 0:00:54.7]} 22. a3 {[%clk
0:00:26.7]} 22... Ra2 {[%clk 0:00:48.6]} 23. Bc5 {[%clk 0:00:24.1]} 23... e5
{[%clk 0:00:36.7]} 24. g3 {[%clk 0:00:20.9]} 24... f6 {[%clk 0:00:36.7]} 25. Kg2
{[%clk 0:00:19.1]} 25... Kf7 {[%clk 0:00:36]} 26. Re3 {[%clk 0:00:18.9]} 26...
Na4 {[%clk 0:00:30.8]} 27. Bb4 {[%clk 0:00:18.2]} 27... Ke6 {[%clk 0:00:31.1]}
28. Rd3 {[%clk 0:00:18.2]} 28... e4 {[%clk 0:00:16.5]} 29. Rd8 {[%clk
0:00:15.3]} 29... f5 {[%clk 0:00:15.1]} 30. h4 {[%clk 0:00:11.9]} 30... Rc2
{[%clk 0:00:13.1]} 31. Re8+ {[%clk 0:00:10.2]} 31... Kd5 {[%clk 0:00:12.3]} 32.
Re7 {[%clk 0:00:09.5]} 32... Nb2 {[%clk 0:00:12.2]} 33. Rd7+ {[%clk 0:00:01.2]}
33... Ke6 {[%clk 0:00:12.4]} 0-1

[Event "*** Titled Tuesday Blitz"]
[Site "Chess.com"]
[Date "2020.11.03"]
[Round "4"]
[White "Chessdude1987"]
[Black "MIJuanReyesRosa"]
[Result "1-0"]
[WhiteElo "2300"]
[BlackElo "2111"]
[TimeControl "180+1"]
[EndTime "10:41:51 PST"]
[Termination "Chessdude1987 won on time"]

1. e4 {[%clk 0:03:00.9]} 1... c5 {[%clk 0:02:58]} 2. b3 {[%clk 0:02:59.5]} 2...
d6 {[%clk 0:02:56]} 3. Bb2 {[%clk 0:02:57.7]} 3... e6 {[%clk 0:02:55.2]} 4. Nc3
{[%clk 0:02:57.2]} 4... Nf6 {[%clk 0:02:54.5]} 5. f4 {[%clk 0:02:56.9]} 5... Be7
{[%clk 0:02:54]} 6. Qf3 {[%clk 0:02:56.3]} 6... Nc6 {[%clk 0:02:52.2]} 7. O-O-O
{[%clk 0:02:51.5]} 7... O-O {[%clk 0:02:50.8]} 8. g4 {[%clk 0:02:41.6]} 8... Nd7
{[%clk 0:02:48.6]} 9. g5 {[%clk 0:02:41.2]} 9... Re8 {[%clk 0:02:39.5]} 10. h4
{[%clk 0:02:35.9]} 10... Bf8 {[%clk 0:02:39.4]} 11. h5 {[%clk 0:02:35.7]} 11...
Nd4 {[%clk 0:02:33.2]} 12. Qg3 {[%clk 0:02:31]} 12... b5 {[%clk 0:02:24.9]} 13.
Nce2 {[%clk 0:02:25.9]} 13... Qb6 {[%clk 0:02:16.1]} 14. g6 {[%clk 0:02:10.2]}
14... fxg6 {[%clk 0:02:08]} 15. hxg6 {[%clk 0:02:09.7]} 15... h6 {[%clk
0:02:07.7]} 16. Nxd4 {[%clk 0:02:00.6]} 16... cxd4 {[%clk 0:02:07]} 17. Nf3
{[%clk 0:02:00.6]} 17... e5 {[%clk 0:01:57.2]} 18. f5 {[%clk 0:01:57.9]} 18...
Nf6 {[%clk 0:01:51.2]} 19. Re1 {[%clk 0:01:49.5]} 19... Bb7 {[%clk 0:01:49.6]}
20. Bd3 {[%clk 0:01:42.5]} 20... Rac8 {[%clk 0:01:46]} 21. Ng5 {[%clk
0:01:35.5]} 21... b4 {[%clk 0:01:31.2]} 22. Nh7 {[%clk 0:01:25]} 22... Be7
{[%clk 0:00:23.9]} 23. Bc4+ {[%clk 0:01:14.6]} 23... Kh8 {[%clk 0:00:14.1]} 24.
Ng5 {[%clk 0:01:09]} 24... d5 {[%clk 0:00:10.2]} 25. exd5 {[%clk 0:01:06.8]}
25... Bxd5 {[%clk 0:00:08]} 26. Bxd5 {[%clk 0:00:55.4]} 26... Nxd5 {[%clk
0:00:07.5]} 27. Nf7+ {[%clk 0:00:45.8]} 27... Kg8 {[%clk 0:00:06.8]} 28. Qxe5
{[%clk 0:00:42.8]} 28... Qc5 {[%clk 0:00:06.1]} 29. Kb1 {[%clk 0:00:30.8]} 29...
Qxc2+ {[%clk 0:00:04.6]} 30. Ka1 {[%clk 0:00:30.6]} 30... Nc3 {[%clk 0:00:03.6]}
31. dxc3 {[%clk 0:00:28.3]} 31... bxc3 {[%clk 0:00:02.7]} 32. Bc1 {[%clk
0:00:23.2]} 32... Qxc1+ {[%clk 0:00:01.2]} 33. Rxc1 {[%clk 0:00:22.7]} 1-0

[Event "*** Titled Tuesday Blitz"]
[Site "Chess.com"]
[Date "2020.11.03"]
[Round "4"]
[White "GAusal"]
[Black "gumimis"]
[Result "1-0"]
[WhiteElo "2078"]
[BlackElo "2250"]
[TimeControl "180+1"]
[EndTime "10:41:51 PST"]
[Termination "GAusal won on time"]

1. e4 {[%clk 0:03:00.9]} 1... c5 {[%clk 0:02:59.4]} 2. f4 {[%clk 0:02:58.9]}
2... Nc6 {[%clk 0:02:56.8]} 3. Nf3 {[%clk 0:02:59.4]} 3... g6 {[%clk 0:02:57]}
4. h4 {[%clk 0:02:56.6]} 4... Bg7 {[%clk 0:02:56.3]} 5. h5 {[%clk 0:02:56.8]}
5... gxh5 {[%clk 0:02:37]} 6. Bc4 {[%clk 0:02:53.9]} 6... Nf6 {[%clk 0:02:34]}
7. e5 {[%clk 0:02:48.5]} 7... Ng4 {[%clk 0:02:29]} 8. Rxh5 {[%clk 0:02:44.8]}
8... d5 {[%clk 0:01:57.1]} 9. Bb5 {[%clk 0:02:39.9]} 9... Qb6 {[%clk 0:01:41.2]}
10. Bxc6+ {[%clk 0:02:33.8]} 10... bxc6 {[%clk 0:01:41.5]} 11. Nc3 {[%clk
0:02:28.7]} 11... c4 {[%clk 0:01:38.3]} 12. Qe2 {[%clk 0:02:24.7]} 12... Ba6
{[%clk 0:01:23.6]} 13. Rg5 {[%clk 0:02:19]} 13... h5 {[%clk 0:00:54.4]} 14. Rxg7
{[%clk 0:02:14]} 14... d4 {[%clk 0:00:50.7]} 15. Na4 {[%clk 0:02:07.4]} 15...
Qa5 {[%clk 0:00:40]} 16. Qe4 {[%clk 0:01:59.4]} 16... Qxa4 {[%clk 0:00:35.8]}
17. Nxd4 {[%clk 0:01:47.5]} 17... Rc8 {[%clk 0:00:21.7]} 18. e6 {[%clk
0:01:41.8]} 18... f6 {[%clk 0:00:16.4]} 19. Qg6+ {[%clk 0:01:33.1]} 19... Kd8
{[%clk 0:00:16.6]} 20. Qf7 {[%clk 0:01:27.1]} 20... Qb4 {[%clk 0:00:08.1]} 21.
c3 {[%clk 0:01:20.3]} 21... Qc5 {[%clk 0:00:06.2]} 22. Ke2 {[%clk 0:01:01.2]}
22... Re8 {[%clk 0:00:05.7]} 23. Rg8 {[%clk 0:00:57.7]} 23... Rxg8 {[%clk
0:00:05.5]} 24. Qxg8+ {[%clk 0:00:57]} 24... Kc7 {[%clk 0:00:06.1]} 25. Qh7
{[%clk 0:00:52.3]} 25... Rd8 {[%clk 0:00:05.9]} 26. Qe4 {[%clk 0:00:34.4]} 26...
f5 {[%clk 0:00:02.7]} 27. Qf3 {[%clk 0:00:29]} 27... Bb7 {[%clk 0:00:01.2]} 28.
Qh3 {[%clk 0:00:26]} 28... Qd6 {[%clk 0:00:01.6]} 29. g3 {[%clk 0:00:24.2]}
29... c5 {[%clk 0:00:01.9]} 30. Nb5+ {[%clk 0:00:22.5]} 30... Kc6 {[%clk
0:00:01.7]} 31. Nxd6 {[%clk 0:00:23.4]} 31... Kxd6 {[%clk 0:00:02.6]} 32. Qxh5
{[%clk 0:00:23.8]} 32... Kxe6 {[%clk 0:00:02.8]} 33. Qg6+ {[%clk 0:00:23.1]}
33... Kd7 {[%clk 0:00:02.8]} 34. Qxf5+ {[%clk 0:00:23.6]} 34... e6 {[%clk
0:00:02.3]} 35. Qxg4 {[%clk 0:00:24.5]} 1-0